fUSD/lending_fUSD_20240205
["ID","MTS","AMOUNT","RATE_DAILY","PERIOD"]
[313314326,1707141051593,-591.06,0.00041095,2]
[313314327,1707141051602,-500.0,0.00041095,2]
[313314328,1707141051612,-500.0,0.00041095,2]
[313314329,1707141051622,-500.0,0.00041095,2]
[313314330,1707141051632,-841.14,0.00041095,2]
[313314331,1707141051642,-500.0,0.00041095,2]
[313314332,1707141051651,-500.0,0.00041095,2]
[313314333,1707141051660,-897.63,0.00041095,2]
[313314334,1707141051670,-500.0,0.00041095,2]
[313314335,1707141051679,-250.0,0.00041095,2]
[313314336,1707141051690,-682.04,0.00041095,2]
[313314337,1707141051700,-500.0,0.00041095,2]
[313314338,1707141051710,-539.98,0.00041095,2]
[313314339,1707141051720,-500.0,0.00041095,2]
[313314340,1707141051729,-516.00284717,0.00041095,2]
[313314341,1707141051739,-500.0,0.00041095,2]
[313314342,1707141051748,-595.39,0.00041095,2]
[313314343,1707141051758,-567.04206657,0.00041095,2]
[313314344,1707141051767,-2067.99,0.00041095,2]
[313314345,1707141051777,-500.0,0.00041095,2]
[313314346,1707141051786,-500.0,0.00041095,2]
[313314347,1707141051796,-1212.3,0.00041095,2]
[313314348,1707141051805,-720.96,0.00041095,2]
[313314349,1707141051814,-772.76,0.00041095,2]
[313314350,1707141051823,-537.18060067,0.00041095,2]
[313314351,1707141051832,-500.0,0.00041095,2]
[313314352,1707141051841,-563.57,0.00041095,2]
[313314353,1707141051851,-500.0,0.00041095,2]
[313314354,1707141051860,-500.0,0.00041095,2]
[313314355,1707141051870,-500.0,0.00041095,2]
[313314356,1707141051879,-500.0,0.00041095,2]
[313314357,1707141051888,-312.99883692,0.00041095,2]
[313314358,1707141051897,-500.0,0.00041095,2]
[313314359,1707141051907,-500.0,0.00041095,2]
[313314360,1707141051916,-3315.66,0.00041095,2]
[313314361,1707141051925,-1673.13,0.00041095,2]
[313314362,1707141051935,-500.0,0.00041095,2]
[313314363,1707141051944,-1183.67,0.00041095,2]
[313314364,1707141051953,-900.33,0.00041095,2]
[313314365,1707141051963,-4531.2,0.00041095,2]
[313314366,1707141051972,-640.84,0.00041095,2]
[313314367,1707141051981,-500.0,0.00041095,2]
[313314368,1707141052145,-1576.09,0.00041095,2]
[313314369,1707141052154,-500.0,0.00041095,2]
[313314370,1707141052164,-500.0,0.00041095,2]
[313314371,1707141052173,-797.42,0.00041095,2]
[313314372,1707141052183,-557.03376018,0.00041095,2]
[313314373,1707141052193,-500.0,0.00041095,2]
[313314374,1707141052203,-3717.27,0.00041095,2]
[313314375,1707141052212,-500.0,0.00041095,2]
[313314376,1707141052222,-500.0,0.00041095,2]
[313314377,1707141052231,-628.47,0.00041095,2]
[313314378,1707141052240,-1000.0,0.00041095,2]
[313314379,1707141052250,-500.0,0.00041095,2]
[313314380,1707141052259,-652.52,0.00041095,2]
[313314381,1707141052268,-500.0,0.00041095,2]
[313314382,1707141052277,-521.68,0.00041095,2]
[313314383,1707141052287,-500.0,0.00041095,2]
[313314384,1707141052296,-500.0,0.00041095,2]
[313314385,1707141052305,-2030.25,0.00041095,2]
[313314386,1707141052315,-191.29175887,0.00041095,2]
[313314387,1707141052324,-500.0,0.00041095,2]
[313314388,1707141052334,-1425.8,0.00041095,2]
[313314389,1707141052343,-500.0,0.00041095,2]
[313314390,1707141052352,-853.61,0.00041095,2]
[313314391,1707141052362,-943.6,0.00041095,2]
[313314392,1707141052372,-797.05,0.00041095,2]
[313314393,1707141052381,-500.0,0.00041095,2]
[313314394,1707141052390,-869.18,0.00041095,2]
[313314395,1707141052400,-16477.57,0.00041095,2]
[313314396,1707141052409,-500.0,0.00041095,2]
[313314397,1707141052419,-500.0,0.00041095,2]
[313314398,1707141052428,-500.0,0.00041095,2]
[313314399,1707141052438,-615.37,0.00041095,2]
[313314400,1707141052448,-508.23991075,0.00041095,2]
[313314401,1707141052457,-500.0,0.00041095,2]
[313314402,1707141052467,-500.0,0.00041095,2]
[313314403,1707141052476,-637.09,0.00041095,2]
[313314404,1707141052486,-962.12,0.00041095,2]
[313314405,1707141052495,-759.37,0.00041095,2]
[313314406,1707141052505,-2493.22,0.00041095,2]
[313314407,1707141052514,-500.0,0.00041095,2]
[313314408,1707141052524,-500.0,0.00041095,2]
[313314409,1707141052533,-500.0,0.00041095,2]
[313314410,1707141052543,-772.9,0.00041095,2]
[313314411,1707141052552,-1247.25,0.00041095,2]
[313314412,1707141052562,-500.0,0.00041095,2]
[313314413,1707141052571,-1000.0,0.00041095,30]
[313314414,1707141052580,-564.67,0.00041095,2]
[313314415,1707141052590,-1000.0,0.00041095,7]
[313314416,1707141052599,-1021.83,0.00041095,2]
[313314417,1707141052608,-500.0,0.00041095,2]
[313314418,1707141052618,-225.5793631,0.00041095,2]
[313314419,1707141052628,-172.38373102,0.00041095,2]
[313314420,1707141052638,-1000.0,0.00041095,2]
[313314421,1707141052647,-536.93492216,0.00041095,2]
[313314422,1707141052656,-500.0,0.00041095,2]
[313314423,1707141052666,-500.0,0.00041095,2]
[313314424,1707141052676,-500.0,0.00041095,2]
[313314425,1707141052687,-216.09193756,0.00041095,2]
[313314426,1707141052697,-518.48672757,0.00041095,2]
[313314427,1707141052706,-1860.07,0.00041095,5]
[313314428,1707141052715,-666.83,0.00041095,2]
[313314429,1707141052725,-965.46,0.00041095,2]
[313314430,1707141052734,-503.1739421,0.00041095,10]
[313314431,1707141052743,-298.09206171,0.00041095,2]
[313314432,1707141052753,-835.34,0.00041095,2]
[313314433,1707141052762,-500.0,0.00041095,2]
[313314434,1707141052771,-500.0,0.00041095,2]
[313314435,1707141052780,-1670.53,0.00041095,2]
[313314436,1707141052789,-500.0,0.00041095,2]
[313314437,1707141052799,-500.0,0.00041095,2]
[313314438,1707141052808,-500.0,0.00041095,2]
[313314439,1707141052817,-500.0,0.00041095,2]
[313314440,1707141052826,-722.21,0.00041095,2]
[313314441,1707141052835,-2378.71,0.00041095,2]
[313314442,1707141052844,-500.0,0.00041095,2]
[313314443,1707141052853,-500.0,0.00041095,2]
[313314444,1707141052862,-500.0,0.00041095,2]
[313314445,1707141052871,-1564.53,0.00041095,2]
[313314446,1707141052881,-1000.0,0.00041095,7]
[313314447,1707141052890,-500.0,0.00041095,2]
[313314448,1707141052899,-500.0,0.00041095,2]
[313314449,1707141052908,-2135.15,0.00041095,2]
[313314450,1707141052917,-1133.82,0.00041095,2]
[313314451,1707141052926,-500.0,0.00041095,2]
[313314452,1707141052935,-1649.41,0.00041095,2]
[313314453,1707141052945,-500.0,0.00041095,2]
[313314454,1707141052954,-500.0,0.00041095,2]
[313314455,1707141052963,-557.20148936,0.00041095,2]
[313314456,1707141052973,-869.85,0.00041095,2]
[313314457,1707141052983,-500.0,0.00041095,2]
[313314458,1707141052992,-556.84180312,0.00041095,2]
[313314459,1707141053002,-1942.02,0.00041095,2]
[313314460,1707141053011,-500.0,0.00041095,2]
[313314461,1707141053021,-300.53182954,0.00041095,2]
[313314462,1707141053030,-500.0,0.00041095,2]
[313314463,1707141053040,-500.0,0.00041095,2]
[313314464,1707141053050,-500.0,0.00041095,2]
[313314465,1707141053061,-886.83,0.00041095,2]
[313314466,1707141053075,-500.0,0.00041095,2]
[313314467,1707141053084,-2082.24,0.00041095,2]
[313314468,1707141053093,-500.0,0.00041095,2]
[313314469,1707141053102,-946.34,0.00041096,2]
[313314470,1707141053112,-946.34,0.00041096,2]
[313314471,1707141053121,-523.29,0.00041096,2]
[313314472,1707141053130,-946.34,0.00041096,2]
[313314473,1707141053140,-403.88,0.00041096,2]
[313314474,1707141053149,-946.34,0.00041096,2]
[313314475,1707141053158,-403.88,0.00041096,2]
[313314476,1707141053168,-946.34,0.00041096,2]
[313314477,1707141053177,-403.88,0.00041096,2]
[313314478,1707141053188,-403.88,0.00041096,2]
[313314479,1707141053196,-946.34,0.00041096,2]
[313314480,1707141053205,-946.34,0.00041096,2]
[313314481,1707141053215,-403.88,0.00041096,2]
[313314482,1707141053224,-946.34,0.00041096,2]
[313314483,1707141053234,-403.88,0.00041096,2]
[313314484,1707141053243,-946.34,0.00041096,2]
[313314485,1707141053253,-403.88,0.00041096,2]
[313314486,1707141053262,-403.88,0.00041096,2]
[313314487,1707141053271,-946.34,0.00041096,2]
[313314488,1707141053280,-403.88,0.00041096,2]
[313314489,1707141053289,-946.34,0.00041096,2]
[313314490,1707141053299,-806.17,0.00041096,2]
[313314491,1707141053308,-946.34,0.00041096,2]
[313314492,1707141053317,-403.88,0.00041096,2]
[313314493,1707141053326,-946.34,0.00041096,2]
[313314494,1707141053335,-403.88,0.00041096,2]
[313314495,1707141053345,-946.34,0.00041096,2]
[313314496,1707141053354,-403.88,0.00041096,2]
[313314497,1707141053363,-807.76,0.00041096,2]
[313314498,1707141053373,-1892.68,0.00041096,2]
[313314499,1707141053383,-403.88,0.00041096,2]
[313314500,1707141053392,-946.34,0.00041096,2]
[313314501,1707141053401,-403.88,0.00041096,2]
[313314502,1707141053410,-403.88,0.00041096,2]
[313314503,1707141053420,-946.34,0.00041096,2]
[313314504,1707141053429,-403.88,0.00041096,2]
[313314505,1707141053439,-946.34,0.00041096,2]
[313314506,1707141053448,-946.34,0.00041096,2]
[313314507,1707141053458,-403.88,0.00041096,2]
[313314508,1707141053467,-243.15712526,0.00041096,2]
[313314509,1707141053477,-151.0,0.00041096,14]
[313314510,1707141053487,-151.0,0.00041096,14]
[313314511,1707141053496,-196.0,0.00041096,14]
[313314512,1707141053505,-151.0,0.00041096,14]
[313314513,1707141053515,-151.0,0.00041096,14]
[313314514,1707141053525,-151.0,0.00041096,14]
[313314515,1707141053534,-151.0,0.00041096,14]
[313314516,1707141053543,-151.0,0.00041096,14]
[313314517,1707141053552,-151.0,0.00041096,14]
[313314518,1707141053562,-151.0,0.00041096,14]
[313314519,1707141053571,-151.292943,0.00041096,14]
[313314520,1707141053580,-151.0,0.00041096,14]
[313314521,1707141053590,-151.0,0.00041096,14]
[313314522,1707141053599,-151.0,0.00041096,14]
[313314523,1707141053608,-231.041967,0.00041096,14]
[313314524,1707141053618,-151.0,0.00041096,14]
[313314525,1707141053627,-272.019566,0.00041096,14]
[313314526,1707141053637,-342.74,0.00041096,2]
[313314527,1707141053647,-150.0,0.00041096,2]
[313314528,1707141053657,-1948.35,0.000411,7]
[313314529,1707141053667,-2766.98,0.000411,7]
[313314530,1707141053677,-2223.76,0.000411,7]
[313314531,1707141053689,-279.48257905,0.000411,2]
[313314532,1707141053699,-1432.0,0.000411,2]
[313314533,1707141053709,-1000.0,0.000411,2]
[313314534,1707141053718,-152.57148148,0.00041155,11]
[313314535,1707141053728,-250.0,0.00041232,7]
[313314536,1707141053738,-206.0,0.00041247,31]
[313314537,1707141053747,-1000.0,0.0004125,4]
[313314538,1707141053757,-520.70242672,0.00041266,13]
[313314539,1707141053767,-155.0,0.0004133,2]
[313314540,1707141053776,-1000.0,0.000415,9]
[313314541,1707141053786,-3850.54133626,0.00041617,5]
[313314542,1707141053796,-4110.28102676,0.00041697,2]
[313314543,1707141053806,-163.3308406,0.00041784,30]
[313314544,1707141053815,-151.11287143,0.00041785,2]
[313314545,1707141053825,-151.45059072,0.0004179,30]
[313314546,1707141053834,-275.5,0.000418,3]
[313314547,1707141053844,-11548.71831169,0.00041809,16]
[313314548,1707141053853,-150.628626,0.000419,2]
[313314549,1707141053862,-175.0,0.00041908,2]
[313314550,1707141053872,-500.0,0.00041917,7]
[313314551,1707141053881,-500.0,0.00041917,7]
[313314552,1707141053890,-500.0,0.00041917,7]
[313314553,1707141053899,-462.17302831,0.00041917,7]
[313314554,1707141053908,-500.0,0.00041917,7]
[313314555,1707141053918,-387.90135178,0.00041917,7]
[313314556,1707141053928,-500.0,0.00041917,7]
[313314557,1707141053938,-214.00999631,0.00041917,7]
[313314558,1707141053947,-500.0,0.00041917,7]
[313314559,1707141053956,-500.0,0.00041917,7]
[313314560,1707141053966,-500.0,0.00041917,7]
[313314561,1707141053975,-250.0,0.00041917,7]
[313314562,1707141053984,-384.35907873,0.00041917,7]
[313314563,1707141053993,-500.0,0.00041917,7]
[313314564,1707141054002,-500.0,0.00041917,7]
[313314565,1707141054011,-500.0,0.00041917,7]
[313314566,1707141054021,-217.75871481,0.00041917,7]
[313314567,1707141054030,-500.0,0.00041917,7]
[313314568,1707141054039,-500.0,0.00041917,7]
[313314569,1707141054050,-187.41205165,0.00041917,7]
[313314570,1707141054060,-500.0,0.00041917,7]
[313314571,1707141054073,-1258.02,0.00041917,7]
[313314572,1707141054082,-526.2789764,0.00041917,7]
[313314573,1707141054091,-500.0,0.00041917,7]
[313314574,1707141054102,-500.0,0.00041917,7]
[313314575,1707141054112,-767.26,0.00041917,7]
[313314576,1707141054122,-559.99868176,0.00041917,7]
[313314577,1707141054132,-881.23,0.00041917,7]
[313314578,1707141054143,-500.0,0.00041917,7]
[313314579,1707141054155,-500.0,0.00041917,7]
[313314580,1707141054168,-377.17095555,0.00041917,7]
[313314581,1707141054178,-308.9,0.00041917,7]
[313314582,1707141054191,-205.22035321,0.00041917,7]
[313314583,1707141054200,-731.54,0.00041917,2]
[313314584,1707141054211,-500.0,0.00041917,7]
[313314585,1707141054221,-500.0,0.00041917,7]
[313314586,1707141054230,-500.0,0.00041917,7]
[313314587,1707141054240,-500.0,0.00041917,7]
[313314588,1707141054251,-500.0,0.00041917,7]
[313314589,1707141054260,-585.93443489,0.00041917,7]
[313314590,1707141054270,-500.0,0.00041917,7]
[313314591,1707141054280,-500.0,0.00041917,7]
[313314592,1707141054290,-696.59,0.00041917,7]
[313314593,1707141054299,-500.0,0.00041917,7]
[313314594,1707141054308,-418.75349245,0.00041917,7]
[313314595,1707141054318,-500.0,0.00041917,7]
[313314596,1707141054327,-500.0,0.00041917,7]
[313314597,1707141054336,-500.0,0.00041917,7]
[313314598,1707141054346,-500.0,0.00041917,7]
[313314599,1707141054357,-500.0,0.00041917,7]
[313314600,1707141054371,-500.0,0.00041917,7]
[313314601,1707141054414,-500.0,0.00041917,7]
[313314602,1707141054423,-500.0,0.00041917,7]
[313314603,1707141054433,-982.48,0.00041917,7]
[313314604,1707141054445,-500.0,0.00041917,7]
[313314605,1707141054454,-500.0,0.00041917,7]
[313314606,1707141054462,-500.0,0.00041917,7]
[313314607,1707141054472,-500.0,0.00041917,7]
[313314608,1707141054481,-500.0,0.00041917,7]
[313314609,1707141054490,-500.0,0.00041917,7]
[313314610,1707141054499,-500.0,0.00041917,7]
[313314611,1707141054509,-500.0,0.00041917,7]
[313314612,1707141054518,-500.0,0.00041917,7]
[313314613,1707141054528,-1951.09,0.00041917,7]
[313314614,1707141054537,-500.0,0.00041917,7]
[313314615,1707141054546,-500.0,0.00041917,7]
[313314616,1707141054556,-631.36785991,0.00041917,7]
[313314617,1707141054566,-500.0,0.00041917,7]
[313314618,1707141054575,-883.69,0.00041917,7]
[313314619,1707141054586,-500.0,0.00041917,7]
[313314620,1707141054596,-1662.45,0.00041917,7]
[313314621,1707141054605,-500.0,0.00041917,7]
[313314622,1707141054614,-380.73820016,0.00041917,7]
[313314623,1707141054623,-500.0,0.00041917,7]
[313314624,1707141054632,-543.57,0.00041917,7]
[313314625,1707141054641,-500.0,0.00041917,7]
[313314626,1707141054651,-500.0,0.00041917,7]
[313314627,1707141054660,-1413.28,0.00041917,7]
[313314628,1707141054669,-500.0,0.00041917,7]
[313314629,1707141054678,-331.81287787,0.00041917,7]
[313314630,1707141054690,-500.0,0.00041917,7]
[313314631,1707141054699,-547.5,0.00041917,7]
[313314632,1707141054708,-500.0,0.00041917,7]
[313314633,1707141054717,-500.0,0.00041917,7]
[313314634,1707141054726,-500.0,0.00041917,2]
[313314635,1707141054736,-857.72,0.00041917,7]
[313314636,1707141054745,-500.0,0.00041917,7]
[313314637,1707141054754,-719.71,0.00041917,2]
[313314638,1707141054763,-667.71,0.00041917,2]
[313314639,1707141054773,-500.0,0.00041917,7]
[313314640,1707141054782,-500.0,0.00041917,7]
[313314641,1707141054792,-640.9,0.00041917,7]
[313314642,1707141054801,-153.77492168,0.00041917,7]
[313314643,1707141054946,-949.09,0.00041917,7]
[313314644,1707141054956,-500.0,0.00041917,7]
[313314645,1707141054966,-500.0,0.00041917,7]
[313314646,1707141054975,-500.0,0.00041917,7]
[313314647,1707141054984,-500.0,0.00041917,7]
[313314648,1707141054993,-500.0,0.00041917,7]
[313314649,1707141055003,-500.0,0.00041917,7]
[313314650,1707141055013,-500.0,0.00041917,7]
[313314651,1707141055022,-500.0,0.00041917,7]
[313314652,1707141055032,-500.0,0.00041917,7]
[313314653,1707141055041,-500.0,0.00041917,7]
[313314654,1707141055052,-500.0,0.00041917,7]
[313314655,1707141055064,-547.63,0.00041917,7]
[313314656,1707141055074,-500.0,0.00041917,7]
[313314657,1707141055084,-1075.46,0.00041917,7]
[313314658,1707141055095,-500.0,0.00041917,7]
[313314659,1707141055104,-500.0,0.00041917,7]
[313314660,1707141055113,-500.0,0.00041917,7]
[313314661,1707141055123,-517.66,0.00041917,7]
[313314662,1707141055132,-527.81938863,0.00041917,7]
[313314663,1707141055142,-293.38186775,0.00041917,7]
[313314664,1707141055151,-550.91,0.00041917,7]
[313314665,1707141055161,-1349.54,0.00041917,7]
[313314666,1707141055171,-500.0,0.00041917,7]
[313314667,1707141055180,-500.0,0.00041917,7]
[313314668,1707141055191,-500.0,0.00041917,7]
[313314669,1707141055200,-500.0,0.00041917,30]
[313314670,1707141055210,-500.0,0.00041917,7]
[313314671,1707141055219,-613.72,0.00041917,7]
[313314672,1707141055229,-1006.73,0.00041917,7]
[313314673,1707141055238,-1250.19,0.00041917,2]
[313314674,1707141055248,-1273.66,0.00041917,7]
[313314675,1707141055257,-500.0,0.00041917,7]
[313314676,1707141055266,-500.0,0.00041917,7]
[313314677,1707141055276,-6044.25,0.00041917,7]
[313314678,1707141055285,-500.0,0.00041917,7]
[313314679,1707141055295,-500.0,0.00041917,7]
[313314680,1707141055304,-500.0,0.00041917,7]
[313314681,1707141055314,-1144.85,0.00041917,7]
[313314682,1707141055323,-500.0,0.00041917,7]
[313314683,1707141055333,-500.0,0.00041917,7]
[313314684,1707141055343,-1340.06,0.00041917,7]
[313314685,1707141055353,-1146.57,0.00041917,7]
[313314686,1707141055362,-753.23,0.00041917,7]
[313314687,1707141055371,-500.0,0.00041917,7]
[313314688,1707141055380,-1749.33,0.00041917,5]
[313314689,1707141055389,-500.0,0.00041917,7]
[313314690,1707141055399,-496.73218971,0.00041917,7]
[313314691,1707141055408,-973.94,0.00041917,7]
[313314692,1707141055417,-883.86,0.00041917,7]
[313314693,1707141055426,-1114.96,0.00041917,7]
[313314694,1707141055436,-500.0,0.00041917,7]
[313314695,1707141055445,-500.0,0.00041917,7]
[313314696,1707141055455,-1040.76,0.00041917,7]
[313314697,1707141055464,-500.0,0.00041917,7]
[313314698,1707141055474,-591.34334373,0.00041917,7]
[313314699,1707141055483,-1579.06,0.00041917,7]
[313314700,1707141055492,-500.0,0.00041917,7]
[313314701,1707141055501,-500.0,0.00041917,7]
[313314702,1707141055511,-500.0,0.00041917,7]
[313314703,1707141055521,-708.83,0.00041917,7]
[313314704,1707141055530,-695.17,0.00041917,7]
[313314705,1707141055540,-4647.44,0.00041917,7]
[313314706,1707141055550,-794.97,0.00041917,7]
[313314707,1707141055560,-500.0,0.00041917,20]
[313314708,1707141055570,-2815.53,0.00041917,7]
[313314709,1707141055580,-16636.33,0.00041917,7]
[313314710,1707141055590,-563.07,0.00041917,7]
[313314711,1707141055600,-874.74,0.00041917,7]
[313314712,1707141055610,-882.21,0.00041917,7]
[313314713,1707141055619,-613.72,0.00041917,7]
[313314714,1707141055628,-500.0,0.00041917,7]
[313314715,1707141055638,-500.0,0.00041917,7]
[313314716,1707141055648,-1232.66,0.00041917,7]
[313314717,1707141055657,-500.0,0.00041917,7]
[313314718,1707141055667,-500.0,0.00041917,7]
[313314719,1707141055676,-786.94,0.00041917,7]
[313314720,1707141055686,-619.7,0.00041917,7]
[313314721,1707141055696,-1817.8,0.00041917,7]
[313314722,1707141055706,-500.0,0.00041917,7]
[313314723,1707141055715,-500.0,0.00041917,7]
[313314724,1707141055724,-500.0,0.00041917,7]
[313314725,1707141055733,-2945.36,0.00041917,7]
[313314726,1707141055743,-3282.54,0.00041917,7]
[313314727,1707141055752,-1282.34,0.00041917,7]
[313314728,1707141055761,-500.0,0.00041917,7]
[313314729,1707141055770,-500.0,0.00041917,7]
[313314730,1707141055779,-500.0,0.00041917,7]
[313314731,1707141055788,-500.0,0.00041917,7]
[313314732,1707141055797,-500.0,0.00041917,7]
[313314733,1707141055806,-3762.66,0.00041917,7]
[313314734,1707141055815,-902.51,0.00041917,7]
[313314735,1707141055825,-811.91,0.00041917,7]
[313314736,1707141055834,-1620.37,0.00041917,7]
[313314737,1707141055843,-3153.57,0.00041917,7]
[313314738,1707141055852,-1709.25,0.00041917,7]
[313314739,1707141055861,-500.0,0.00041917,7]
[313314740,1707141055871,-500.0,0.00041917,7]
[313314741,1707141055880,-500.0,0.00041917,7]
[313314742,1707141055889,-500.0,0.00041917,7]
[313314743,1707141055898,-841.14,0.00041917,7]
[313314744,1707141055906,-500.0,0.00041917,7]
[313314745,1707141055915,-500.0,0.00041917,7]
[313314746,1707141055925,-897.63,0.00041917,7]
[313314747,1707141055934,-500.0,0.00041917,7]
[313314748,1707141055944,-682.04,0.00041917,7]
[313314749,1707141055953,-500.0,0.00041917,7]
[313314750,1707141055962,-156.85314889,0.00041917,7]
[313314751,1707141055971,-500.0,0.00041917,7]
[313314752,1707141055980,-595.39,0.00041917,7]
[313314753,1707141055989,-2067.99,0.00041917,7]
[313314754,1707141055999,-500.0,0.00041917,7]
[313314755,1707141056008,-500.0,0.00041917,7]
[313314756,1707141056018,-1212.3,0.00041917,7]
[313314757,1707141056027,-720.96,0.00041917,7]
[313314758,1707141056036,-772.76,0.00041917,7]
[313314759,1707141056045,-500.0,0.00041917,7]
[313314760,1707141056058,-563.57,0.00041917,7]
[313314761,1707141056067,-500.0,0.00041917,7]
[313314762,1707141056077,-500.0,0.00041917,7]
[313314763,1707141056087,-500.0,0.00041917,7]
[313314764,1707141056097,-500.0,0.00041917,7]
[313314765,1707141056106,-500.0,0.00041917,7]
[313314766,1707141056116,-500.0,0.00041917,7]
[313314767,1707141056125,-3315.66,0.00041917,7]
[313314768,1707141056137,-1673.13,0.00041917,7]
[313314769,1707141056147,-500.0,0.00041917,7]
[313314770,1707141056156,-1183.67,0.00041917,7]
[313314771,1707141056166,-900.33,0.00041917,7]
[313314772,1707141056176,-4531.2,0.00041917,7]
[313314773,1707141056185,-640.84,0.00041917,7]
[313314774,1707141056195,-500.0,0.00041917,7]
[313314775,1707141056204,-1576.09,0.00041917,7]
[313314776,1707141056213,-500.0,0.00041917,7]
[313314777,1707141056223,-797.42,0.00041917,7]
[313314778,1707141056232,-500.0,0.00041917,7]
[313314779,1707141056242,-3717.27,0.00041917,7]
[313314780,1707141056251,-500.0,0.00041917,7]
[313314781,1707141056261,-500.0,0.00041917,5]
[313314782,1707141056271,-220.78826935,0.00041917,2]
[313314783,1707141056280,-500.0,0.00041917,7]
[313314784,1707141056290,-652.52,0.00041917,7]
[313314785,1707141056299,-217.48835983,0.00041917,7]
[313314786,1707141056309,-521.68,0.00041917,7]
[313314787,1707141056319,-500.0,0.00041917,7]
[313314788,1707141056329,-500.0,0.00041917,7]
[313314789,1707141056338,-2030.25,0.00041917,7]
[313314790,1707141056347,-500.0,0.00041917,7]
[313314791,1707141056357,-1425.8,0.00041917,7]
[313314792,1707141056366,-500.0,0.00041917,7]
[313314793,1707141056375,-853.61,0.00041917,7]
[313314794,1707141056384,-943.6,0.00041917,7]
[313314795,1707141056394,-797.05,0.00041917,7]
[313314796,1707141056403,-869.18,0.00041917,7]
[313314797,1707141056413,-500.0,0.00041917,7]
[313314798,1707141056423,-16477.57,0.00041917,7]
[313314799,1707141056433,-500.0,0.00041917,7]
[313314800,1707141056443,-615.37,0.00041917,7]
[313314801,1707141056453,-500.0,0.00041917,7]
[313314802,1707141056463,-500.0,0.00041917,7]
[313314803,1707141056472,-637.09,0.00041917,7]
[313314804,1707141056481,-962.12,0.00041917,7]
[313314805,1707141056491,-759.37,0.00041917,7]
[313314806,1707141056501,-2493.22,0.00041917,7]
[313314807,1707141056511,-500.0,0.00041917,7]
[313314808,1707141056520,-500.0,0.00041917,7]
[313314809,1707141056530,-465.58960609,0.00041917,7]
[313314810,1707141056540,-772.9,0.00041917,7]
[313314811,1707141056549,-1247.25,0.00041917,7]
[313314812,1707141056558,-500.0,0.00041917,7]
[313314813,1707141056568,-564.67,0.00041917,7]
[313314814,1707141056577,-1021.83,0.00041917,7]
[313314815,1707141056587,-500.0,0.00041917,7]
[313314816,1707141056596,-836.05847808,0.00041917,2]
[313314817,1707141056605,-500.0,0.00041917,7]
[313314818,1707141056615,-500.0,0.00041917,7]
[313314819,1707141056624,-1860.07,0.00041917,5]
[313314820,1707141056634,-965.46,0.00041917,7]
[313314821,1707141056643,-666.83,0.00041917,7]
[313314822,1707141056653,-835.34,0.00041917,7]
[313314823,1707141056662,-500.0,0.00041917,7]
[313314824,1707141056672,-500.0,0.00041917,7]
[313314825,1707141056682,-1670.53,0.00041917,7]